bitfinex-derivatives/quotes_BTCF0:USTF0_20241224
["timestamp","ask_amount","ask_price","bid_price","bid_amount"]
[1735074485548,0.051225,97681.0,97680.0,0.052225]
[1735074485750,0.051225,97681.0,97680.0,0.051225]
[1735074486048,0.051225,97681.0,97680.0,0.052225]
[1735074489853,0.3608,97698.0,97680.0,0.001]
[1735074490055,0.3608,97698.0,97688.0,0.20140282]
[1735074490354,0.0437,97721.0,97712.0,0.051209]
[1735074490544,0.051203,97724.0,97712.0,0.412009]
[1735074490950,0.26488521,97734.0,97732.0,0.051198]
[1735074491154,0.21368821,97734.0,97732.0,0.051198]
[1735074491667,0.11368821,97734.0,97732.0,0.051198]
[1735074492456,0.051193,97743.0,97737.0,0.051195]
[1735074492955,0.051193,97743.0,97738.0,0.051195]
[1735074493345,0.051194,97741.0,97738.0,0.051195]
[1735074493757,0.051194,97740.0,97737.0,0.001]
[1735074494345,0.051194,97740.0,97737.0,0.002]
[1735074495643,0.051194,97740.0,97737.0,0.001]
[1735074496155,0.051195,97739.0,97737.0,0.001]
[1735074496560,0.051195,97739.0,97738.0,0.001]
[1735074497449,0.36136001,97744.0,97738.0,0.001]
[1735074497644,0.3608,97744.0,97738.0,0.001]
[1735074497956,0.3608,97744.0,97741.0,0.051193]
[1735074498348,0.3608,97744.0,97742.0,0.051193]
[1735074499848,0.2542151,97807.0,97748.0,0.05119]
[1735074499849,0.051183,97761.0,97748.0,0.05119]
[1735074500049,0.01097494,97762.0,97750.0,0.10070141]
[1735074500249,0.051188,97751.0,97748.0,0.05119]
[1735074500457,0.3608,97763.0,97748.0,0.05119]
[1735074500651,0.051185,97757.0,97752.0,0.051188]
[1735074500859,0.051185,97757.0,97750.0,0.10070141]
[1735074501060,0.051186,97755.0,97753.0,0.051187]
[1735074501562,0.051187,97754.0,97742.0,0.3618]
[1735074501863,0.051187,97754.0,97748.0,0.051189]
[1735074502055,0.051187,97754.0,97749.0,0.051189]
[1735074502262,0.051183,97762.0,97749.0,0.051189]
[1735074502560,0.051185,97757.0,97753.0,0.051187]
[1735074503153,0.3608,97763.0,97753.0,0.051187]
[1735074503554,0.051188,97753.0,97749.0,0.001]
[1735074503748,0.051188,97753.0,97749.0,0.052189]
[1735074505064,0.051188,97752.0,97749.0,0.052189]
[1735074505256,0.051188,97752.0,97749.0,0.051189]
[1735074505561,0.051188,97752.0,97750.0,0.051189]
[1735074507068,0.051188,97752.0,97750.0,0.052189]
[1735074507455,0.051188,97752.0,97750.0,0.06324546]
[1735074507754,0.051188,97752.0,97750.0,0.001]
[1735074507959,0.051196,97737.0,97731.0,0.18388249]
[1735074508561,0.051196,97737.0,97730.0,0.10070141]
[1735074508863,0.3608,97751.0,97730.0,0.10070141]
[1735074508864,0.051197,97736.0,97735.0,0.051196]
[1735074510065,0.051197,97736.0,97735.0,0.052196]
[1735074510465,0.051197,97736.0,97735.0,0.053196]
[1735074519573,0.051197,97736.0,97735.0,0.052196]
[1735074521467,0.00052001,97751.0,97750.0,0.051189]
[1735074521673,0.00056001,97772.0,97771.0,0.051178]
[1735074521874,0.051174,97778.0,97771.0,0.3608]
[1735074522171,0.3608,97787.0,97786.0,0.05117]
[1735074523577,0.3608,97787.0,97786.0,0.05317]
[1735074525579,0.3608,97787.0,97786.0,0.002]
[1735074525774,0.3608,97787.0,97786.0,0.001]
[1735074525969,0.3608,97787.0,97782.0,0.0109881]
[1735074526173,0.3608,97787.0,97786.0,0.001]
[1735074527074,0.41197,97787.0,97782.0,0.001]
[1735074528479,0.3608,97787.0,97786.0,0.001]
[1735074528674,0.0462,97798.0,97786.0,0.001]
[1735074528874,0.1,97800.0,97795.0,0.051165]
[1735074529066,0.151163,97800.0,97795.0,0.051165]
[1735074529267,0.151163,97800.0,97790.0,0.3608]
[1735074529669,0.151163,97800.0,97798.0,0.051164]
[1735074530278,0.1,97800.0,97798.0,0.051164]
[1735074531875,0.1,97800.0,97798.0,0.052164]
[1735074532077,0.151163,97800.0,97798.0,0.001]
[1735074536371,0.151163,97800.0,97799.0,0.051163]
[1735074536372,0.1,97800.0,97799.0,0.051163]
[1735074538586,0.1,97800.0,97799.0,0.052163]
[1735074541481,0.1,97800.0,97799.0,0.051163]
[1735074541791,0.1,97800.0,97799.0,0.052163]
[1735074542584,0.1,97800.0,97799.0,0.051163]
[1735074542788,0.1,97800.0,97799.0,0.052163]
[1735074544587,0.1,97800.0,97799.0,0.051163]
[1735074544795,0.1,97800.0,97799.0,0.052163]
[1735074550294,0.051155,97814.0,97799.0,0.052163]
[1735074550593,0.051155,97814.0,97800.0,0.29680282]
[1735074551187,0.3608,97818.0,97817.0,0.051154]
[1735074551388,0.051152,97822.0,97821.0,0.051151]
[1735074551603,0.051145,97835.0,97817.0,0.3608]
[1735074551781,0.051152,97821.0,97820.0,0.051152]
[1735074552785,0.051152,97821.0,97820.0,0.052152]
[1735074554293,0.051152,97821.0,97820.0,0.051152]
[1735074554595,0.051152,97821.0,97820.0,0.052152]
[1735074557295,0.051152,97821.0,97820.0,0.051152]
[1735074557493,0.051152,97821.0,97820.0,0.052152]
[1735074561601,0.051145,97835.0,97817.0,0.55517317]
[1735074561602,0.4531,97827.0,97817.0,0.18341644]
[1735074561908,0.411953,97818.0,97817.0,0.18265644]
[1735074562299,0.051156,97812.0,97811.0,0.18265644]
[1735074563606,0.051156,97812.0,97811.0,0.18365644]
[1735074563806,0.051156,97812.0,97811.0,0.001]
[1735074564498,0.051156,97812.0,97811.0,0.002]
[1735074565399,0.0495,97817.0,97815.0,0.051155]
[1735074565400,0.051155,97816.0,97815.0,0.051155]
[1735074565603,0.45366001,97827.0,97820.0,0.051152]
[1735074565805,0.4531,97827.0,97818.0,0.051153]
[1735074566001,0.4531,97827.0,97811.0,0.001]
[1735074566201,0.4531,97827.0,97820.0,0.051152]
[1735074566400,0.4531,97827.0,97811.0,0.001]
[1735074566602,0.4531,97827.0,97823.0,0.05115]
[1735074567510,0.4531,97827.0,97826.0,0.051149]
[1735074569704,0.0923,97827.0,97826.0,0.052149]
[1735074569912,0.3608,97839.0,97838.0,0.051143]
[1735074571415,0.3608,97839.0,97838.0,0.052143]
[1735074573115,0.3608,97839.0,97838.0,0.051143]
[1735074573317,0.3608,97839.0,97838.0,0.052143]
[1735074574108,0.711942,97839.0,97823.0,0.18265644]
[1735074574306,0.711942,97839.0,97822.0,0.03125644]
[1735074574307,0.051151,97823.0,97822.0,0.03125644]
[1735074574508,0.051153,97818.0,97810.0,0.3044274]
[1735074574706,0.3608,97811.0,97810.0,0.3044274]
[1735074574916,0.00052001,97817.0,97816.0,0.051154]
[1735074575119,0.3608,97823.0,97817.0,0.051154]
[1735074575421,0.411951,97823.0,97816.0,0.051154]
[1735074575622,0.411951,97823.0,97818.0,0.051153]
[1735074576921,0.411951,97823.0,97818.0,0.052153]
[1735074577924,0.412951,97823.0,97818.0,0.053153]
[1735074578218,0.42342134,97823.0,97818.0,0.053153]
[1735074578516,0.051152,97821.0,97818.0,0.053153]
[1735074578719,0.051152,97821.0,97818.0,0.052153]
[1735074580423,0.051152,97820.0,97818.0,0.001]
[1735074582421,0.051156,97813.0,97808.0,0.051158]
[1735074582722,0.051157,97810.0,97808.0,0.051158]
[1735074583122,0.23458104,97810.0,97808.0,0.051158]
[1735074583425,0.23458104,97810.0,97808.0,0.053158]
[1735074583926,0.3608,97809.0,97808.0,0.054158]
[1735074585132,0.3608,97809.0,97808.0,0.003]
[1735074585427,0.3608,97809.0,97808.0,0.002]
[1735074585725,0.3608,97809.0,97808.0,0.003]
[1735074585917,0.54416756,97809.0,97808.0,0.003]
[1735074587424,0.3608,97809.0,97808.0,0.003]
[1735074587628,0.21269174,97822.0,97808.0,0.3638]
[1735074587820,0.21269174,97822.0,97821.0,0.3608]
[1735074588131,0.21269174,97822.0,97821.0,0.411952]
[1735074589025,0.15283137,97826.0,97825.0,0.05115]
[1735074590024,0.15283137,97827.0,97825.0,0.41195]
[1735074590230,0.009,97826.0,97825.0,0.41295]
[1735074590931,0.009,97826.0,97825.0,0.001]
[1735074592135,0.051149,97826.0,97825.0,0.001]
[1735074592633,0.051149,97826.0,97824.0,0.05115]
[1735074592817,0.060149,97826.0,97825.0,0.001]
[1735074593724,0.060149,97826.0,97824.0,0.05215]
[1735074594436,0.05115,97825.0,97824.0,0.05215]
[1735074595334,0.05115,97825.0,97824.0,0.05115]
[1735074595637,0.05115,97825.0,97824.0,0.41195]
[1735074595837,0.06015,97825.0,97824.0,0.41295]
[1735074600030,0.21301564,97825.0,97824.0,0.41295]
[1735074600735,0.16186564,97825.0,97824.0,0.41295]
[1735074602739,0.009,97825.0,97824.0,0.41295]
[1735074606630,0.06015,97825.0,97824.0,0.3618]
[1735074607135,0.06015,97825.0,97824.0,0.001]
[1735074612146,0.05116,97805.0,97800.0,0.051162]
[1735074612342,0.05116,97805.0,97795.0,0.3608]
[1735074612541,0.051164,97798.0,97795.0,0.3608]
[1735074613742,0.051164,97798.0,97796.0,0.01054695]
[1735074614247,0.051164,97798.0,97797.0,0.00553366]
[1735074614447,0.1834537,97801.0,97800.0,0.051163]
[1735074614844,0.1077537,97801.0,97800.0,0.051163]
[1735074615040,0.0320537,97801.0,97800.0,0.051163]
[1735074615445,0.007,97805.0,97800.0,0.051163]
[1735074615647,0.15283784,97808.0,97804.0,0.3608]
[1735074615845,0.15283784,97808.0,97807.0,0.051159]
[1735074616253,0.07713784,97808.0,97807.0,0.051159]
[1735074616451,0.051151,97822.0,97820.0,0.051152]
[1735074616752,0.051151,97822.0,97821.0,0.3608]
[1735074618845,0.060151,97822.0,97821.0,0.3618]
[1735074623264,1.560151,97822.0,97821.0,0.3618]
[1735074623472,0.060151,97822.0,97821.0,0.3618]
[1735074636377,0.420951,97822.0,97801.0,0.411962]
[1735074636587,0.051153,97819.0,97801.0,0.3608]
[1735074636889,0.051162,97802.0,97801.0,0.3608]
[1735074637388,0.051162,97802.0,97801.0,0.3638]
[1735074637687,0.051162,97802.0,97801.0,0.414962]
[1735074638076,0.051162,97802.0,97801.0,0.42544343]
[1735074638479,0.051162,97802.0,97801.0,0.42644343]
[1735074638785,0.051157,97811.0,97810.0,0.051156]
[1735074638982,0.051157,97811.0,97810.0,0.411956]
[1735074640285,0.051157,97811.0,97810.0,0.412956]
[1735074641085,0.060157,97811.0,97810.0,0.413956]
[1735074641676,0.009,97811.0,97810.0,0.413956]
[1735074641883,0.18345438,97820.0,97819.0,0.051153]
[1735074642186,0.051152,97821.0,97820.0,0.051152]
[1735074644089,0.051152,97821.0,97820.0,0.052152]
[1735074644090,0.053152,97821.0,97820.0,0.052152]
[1735074648691,0.051152,97820.0,97819.0,0.3608]
[1735074648895,0.098652,97820.0,97819.0,0.2864]
[1735074649390,1.598652,97820.0,97819.0,0.2864]
[1735074649690,0.098652,97820.0,97819.0,0.2864]
[1735074649886,0.051157,97811.0,97810.0,0.3608]
[1735074651189,0.051157,97811.0,97810.0,0.3618]
[1735074651486,0.002,97811.0,97810.0,0.3628]
[1735074656392,0.0491,97811.0,97810.0,0.3628]
[1735074658887,0.0491,97811.0,97810.0,0.001]
[1735074659092,0.051164,97798.0,97791.0,0.3608]
[1735074659788,0.051164,97798.0,97793.0,0.01024751]
[1735074659986,0.051164,97798.0,97791.0,0.3608]
[1735074660383,0.054164,97798.0,97797.0,0.00553366]
[1735074664084,0.003,97798.0,97797.0,0.05669766]
[1735074672695,0.003,97798.0,97797.0,0.055164]
[1735074676698,0.003,97798.0,97797.0,0.004]
[1735074676898,0.051169,97788.0,97772.0,0.411977]
[1735074677099,0.051169,97788.0,97787.0,0.02334552]
[1735074677302,0.051169,97788.0,97763.0,0.74187201]
[1735074677303,0.051173,97781.0,97767.0,0.01032637]
[1735074677509,0.051176,97775.0,97774.0,0.36531288]
[1735074677810,0.051176,97775.0,97774.0,0.29151288]
[1735074678907,0.051176,97775.0,97774.0,0.22271288]
[1735074679114,0.10094757,97775.0,97774.0,0.005]
[1735074679410,0.051184,97760.0,97758.0,0.00153446]
[1735074680904,0.04977157,97759.0,97758.0,0.00153446]
[1735074681306,0.04977157,97759.0,97742.0,0.051193]
[1735074681502,0.051189,97749.0,97742.0,0.051193]
[1735074681703,0.051189,97749.0,97746.0,0.37145959]
[1735074683007,0.058189,97749.0,97746.0,0.37245959]
[1735074683510,0.007,97749.0,97746.0,0.37245959]
[1735074683712,0.05119,97748.0,97746.0,0.37245959]
[1735074684702,0.12173647,97748.0,97747.0,0.05119]
[1735074684903,0.12373647,97748.0,97747.0,0.05119]
[1735074685411,0.13273647,97748.0,97747.0,0.05119]
[1735074686007,0.13273647,97748.0,97747.0,0.05219]
[1735074686209,0.011,97748.0,97747.0,0.001]
[1735074686405,0.06219,97748.0,97747.0,0.001]
[1735074690209,0.06019,97748.0,97747.0,0.001]
[1735074690407,0.06219,97748.0,97747.0,0.001]
[1735074690611,0.011,97748.0,97747.0,0.001]
[1735074690915,0.36136001,97768.0,97762.0,0.051182]
[1735074690916,0.00052001,97768.0,97762.0,0.051182]
[1735074691110,0.09386501,97763.0,97762.0,0.772782]
[1735074692119,0.051174,97778.0,97774.0,0.051176]
[1735074692309,0.051174,97778.0,97776.0,0.3608]
[1735074694120,0.057174,97778.0,97776.0,0.3618]
[1735074694620,0.057174,97778.0,97776.0,0.3628]
[1735074695128,0.051174,97778.0,97776.0,0.3608]
[1735074696720,0.46150141,97790.0,97769.0,0.0454]
[1735074696915,0.051177,97773.0,97769.0,0.0454]
[1735074697116,0.051177,97772.0,97769.0,0.0454]
[1735074697315,0.051177,97772.0,97769.0,0.05600271]
[1735074697814,0.051177,97772.0,97770.0,0.3608]
[1735074698522,0.057177,97772.0,97770.0,0.3608]
[1735074698916,0.057177,97772.0,97770.0,0.3618]
[1735074699409,0.051178,97770.0,97769.0,0.01060271]
[1735074699611,0.006,97772.0,97762.0,0.36136]
[1735074699811,0.005,97772.0,97764.0,0.051181]
[1735074700014,0.007,97772.0,97764.0,0.051181]
[1735074700214,0.05118,97767.0,97764.0,0.051181]
[1735074700624,0.007,97772.0,97764.0,0.051181]
[1735074700625,0.051181,97766.0,97764.0,0.051181]
[1735074701328,0.005,97772.0,97763.0,0.05716331]
[1735074701538,0.051181,97764.0,97763.0,0.05716331]
[1735074705024,0.056181,97764.0,97763.0,0.05816331]
[1735074705925,0.056181,97764.0,97763.0,0.01116331]
[1735074706228,0.056181,97764.0,97763.0,0.001]
[1735074706427,0.057181,97764.0,97763.0,0.001]
[1735074707130,0.056181,97764.0,97763.0,0.001]
[1735074708022,0.051183,97761.0,97760.0,0.00844574]
[1735074708225,0.051183,97761.0,97756.0,0.051185]
[1735074708530,0.051183,97761.0,97757.0,0.051185]
[1735074709125,0.051183,97761.0,97760.0,0.001]
[1735074709339,0.005,97761.0,97760.0,0.001]
[1735074710228,0.05476993,97761.0,97760.0,0.001]
[1735074710624,0.05476993,97761.0,97759.0,0.051184]
[1735074711234,0.05476993,97761.0,97760.0,0.001]
[1735074711733,0.005,97761.0,97759.0,0.001]
[1735074711934,0.005,97761.0,97760.0,0.051184]
[1735074712436,0.05118,97767.0,97763.0,0.051182]
[1735074712636,0.18276088,97770.0,97763.0,0.411982]
[1735074713437,0.18276088,97770.0,97763.0,0.3608]
[1735074713438,0.04976674,97767.0,97763.0,0.3608]
[1735074713640,0.051181,97764.0,97763.0,0.3608]
[1735074714842,0.04976674,97767.0,97757.0,0.051185]
[1735074715037,0.04976674,97764.0,97757.0,0.051185]
[1735074715432,0.10594774,97764.0,97763.0,0.001]
[1735074715829,0.10694774,97764.0,97763.0,0.001]
[1735074716337,0.28970862,97764.0,97763.0,0.001]
[1735074716937,0.051183,97761.0,97757.0,0.052185]
[1735074717436,0.051185,97758.0,97754.0,0.3690607]
[1735074717639,0.051186,97755.0,97754.0,0.4202477]
[1735074718934,0.28371362,97755.0,97754.0,0.4202477]
[1735074719736,0.28471362,97755.0,97754.0,0.4202477]
[1735074719931,0.28971362,97755.0,97754.0,0.4212477]
[1735074720435,0.28971362,97755.0,97754.0,0.3700607]
[1735074722029,0.10695274,97755.0,97754.0,0.3700607]
[1735074723138,0.057186,97755.0,97754.0,0.3700607]
[1735074723839,0.058186,97755.0,97754.0,0.3700607]
[1735074724237,0.058186,97755.0,97754.0,0.3690607]
[1735074724450,0.058186,97755.0,97754.0,0.3700607]
[1735074724451,0.10795274,97755.0,97754.0,0.3700607]
[1735074725148,0.10595274,97755.0,97754.0,0.3700607]
[1735074727649,0.15289857,97764.0,97763.0,0.051182]
[1735074727949,0.24307627,97770.0,97769.0,0.051179]
[1735074728445,0.35188237,97788.0,97775.0,0.051176]
[1735074728446,0.10661851,97776.0,97775.0,0.051176]
[1735074728752,0.1414403,97787.0,97786.0,0.05117]
[1735074729048,0.1414403,97787.0,97786.0,0.41197]
[1735074730046,0.1834882,97790.0,97789.0,0.051168]
[1735074730345,0.1834882,97790.0,97789.0,0.411968]
[1735074731148,0.2038469,97799.0,97789.0,0.3608]
[1735074731349,0.2038469,97799.0,97798.0,0.411964]
[1735074732550,0.051163,97799.0,97798.0,0.411964]
[1735074732850,0.056163,97799.0,97798.0,0.411964]
[1735074733050,0.056163,97799.0,97798.0,0.412964]
[1735074734958,0.056163,97799.0,97798.0,0.3618]
[1735074735657,1.556163,97799.0,97798.0,0.3618]
[1735074735858,0.056163,97799.0,97798.0,0.3618]
[1735074738760,0.056163,97799.0,97798.0,0.001]
[1735074746763,0.051163,97799.0,97798.0,0.001]
[1735074747062,0.051165,97796.0,97793.0,0.3608]
[1735074747456,0.1526839,97802.0,97793.0,0.3608]
[1735074747761,0.051165,97795.0,97793.0,0.3608]
[1735074748756,0.051167,97791.0,97787.0,0.051169]
[1735074749065,0.051167,97791.0,97788.0,0.051169]
[1735074749563,0.051167,97791.0,97789.0,0.3608]
[1735074750264,0.0411,97790.0,97789.0,0.3608]
[1735074750855,0.0411,97790.0,97789.0,0.3618]
[1735074751459,0.0421,97790.0,97789.0,0.3618]
[1735074751963,0.001,97790.0,97789.0,0.412968]
[1735074753165,0.1526839,97792.0,97789.0,0.3618]
[1735074753370,0.1526839,97792.0,97791.0,0.051167]
[1735074754072,0.12209462,97800.0,97791.0,0.051167]
[1735074754364,0.12209462,97800.0,97799.0,0.411963]
[1735074755768,0.051161,97804.0,97803.0,0.051161]
[1735074756568,0.051163,97800.0,97799.0,0.3618]
[1735074757260,0.051163,97800.0,97799.0,0.3608]
[1735074757462,0.051161,97804.0,97799.0,0.3608]
[1735074757961,0.051162,97803.0,97802.0,0.051161]
[1735074758168,0.1834882,97804.0,97802.0,0.051161]
[1735074758669,0.1834882,97804.0,97803.0,0.0405]
[1735074759668,0.1834882,97804.0,97803.0,0.127]
[1735074759866,0.0427,97826.0,97804.0,0.05116]
[1735074759867,0.1834882,97816.0,97804.0,0.05116]
[1735074760066,0.1834882,97816.0,97815.0,0.3608]
[1735074760956,0.1834882,97816.0,97815.0,0.411955]
[1735074761471,0.1834882,97818.0,97817.0,0.051154]
[1735074762669,0.2346392,97823.0,97818.0,0.051153]
[1735074763771,0.052151,97823.0,97818.0,0.051153]
[1735074763969,0.052151,97823.0,97818.0,0.052153]
[1735074765074,0.15286304,97819.0,97818.0,0.052153]
[1735074766273,0.001,97819.0,97818.0,0.052153]
[1735074766975,0.001,97819.0,97818.0,0.001]
[1735074767774,0.15386304,97819.0,97818.0,0.001]
[1735074768476,0.20501604,97819.0,97818.0,0.001]
[1735074768672,0.051153,97819.0,97818.0,0.001]
[1735074768978,0.053153,97819.0,97818.0,0.001]
[1735074771072,0.20596651,97819.0,97818.0,0.001]
[1735074773577,0.21505941,97819.0,97818.0,0.001]
[1735074774676,0.0622459,97819.0,97818.0,0.001]
[1735074775268,0.051156,97813.0,97799.0,0.3608]
[1735074775476,0.051163,97800.0,97799.0,0.3608]
[1735074776177,0.10070141,97810.0,97793.0,0.3608]
[1735074776178,0.051164,97798.0,97797.0,0.00883472]
[1735074776379,0.051166,97794.0,97793.0,0.3608]
[1735074778484,0.052166,97794.0,97793.0,0.3608]
[1735074778682,0.052166,97794.0,97793.0,0.36992774]
[1735074778877,0.051166,97794.0,97793.0,0.36992774]
[1735074779083,0.053166,97794.0,97793.0,0.37092774]
[1735074779284,0.053166,97794.0,97793.0,0.42209374]
[1735074780585,0.002,97794.0,97793.0,0.42209374]
[1735074781586,0.15288405,97797.0,97796.0,0.051165]
[1735074781881,1e-08,97797.0,97796.0,0.411965]
[1735074782282,0.051155,97815.0,97800.0,0.051163]
[1735074782588,0.1834882,97816.0,97814.0,0.772755]
[1735074783488,0.051151,97822.0,97821.0,0.051152]
[1735074783692,0.051151,97822.0,97814.0,0.7216]
[1735074783693,0.0382,97835.0,97814.0,1.02212]
[1735074783881,0.039,97846.0,97834.0,0.772745]
[1735074784102,0.0404,97855.0,97850.0,0.051136]
[1735074784103,0.128134,97855.0,97850.0,0.051136]
[1735074784397,0.128134,97855.0,97854.0,0.3608]
[1735074785191,0.128134,97855.0,97854.0,0.411934]
[1735074785796,0.135134,97855.0,97854.0,0.413934]
[1735074786399,0.084,97855.0,97854.0,0.413934]
[1735074786598,0.0436,97855.0,97854.0,0.413934]
[1735074788103,0.0366,97855.0,97854.0,0.412934]
[1735074788415,0.0386,97855.0,97854.0,0.413934]
[1735074789090,0.0386,97855.0,97854.0,0.42272339]
[1735074790100,0.0406,97855.0,97854.0,0.42172339]
[1735074794001,0.004,97855.0,97854.0,0.42172339]
[1735074802207,0.055134,97855.0,97854.0,0.36112339]
[1735074802706,0.055134,97855.0,97854.0,0.30998939]
[1735074804009,0.054134,97855.0,97854.0,0.30998939]
[1735074804407,0.054134,97855.0,97854.0,0.36112339]
[1735074805213,0.003,97855.0,97854.0,0.36112339]
[1735074805518,0.0391,97864.0,97860.0,0.051131]
[1735074805707,0.090229,97864.0,97860.0,0.051131]
[1735074805906,0.090229,97864.0,97861.0,0.051131]
[1735074806409,0.090229,97864.0,97854.0,0.4112908]
[1735074806410,0.00060001,97881.0,97879.0,0.051121]
[1735074806717,0.0384,97880.0,97873.0,0.051124]
[1735074806906,0.0384,97879.0,97863.0,0.3608]
[1735074807105,0.0384,97879.0,97867.0,0.051127]
[1735074807106,0.051125,97873.0,97867.0,0.051127]
[1735074807306,0.051123,97876.0,97871.0,0.3608]
[1735074808704,0.051123,97876.0,97871.0,0.3618]
[1735074808916,0.051123,97876.0,97874.0,0.051124]
[1735074809417,0.055123,97876.0,97874.0,0.051124]
[1735074810009,0.051123,97876.0,97874.0,0.051124]
[1735074810219,0.055123,97876.0,97874.0,0.052124]
[1735074810422,0.055123,97876.0,97874.0,0.002]
[1735074811821,0.051123,97875.0,97874.0,0.002]
[1735074813020,0.055123,97875.0,97874.0,0.002]
[1735074813215,0.055123,97875.0,97874.0,0.001]
[1735074813426,0.055123,97875.0,97874.0,0.002]
[1735074813926,0.051129,97864.0,97863.0,0.3608]
[1735074814134,0.051131,97861.0,97860.0,0.00904047]
[1735074814322,0.051131,97860.0,97859.0,0.18421411]
[1735074815023,0.051131,97860.0,97859.0,0.00153276]
[1735074816322,0.054131,97860.0,97859.0,0.00153276]
[1735074817517,0.055131,97860.0,97859.0,0.00253276]
[1735074818627,0.2378938,97860.0,97859.0,0.00253276]
[1735074824226,0.055131,97860.0,97859.0,0.00253276]
[1735074828929,0.23888728,97860.0,97859.0,0.00253276]
[1735074831335,0.055131,97860.0,97859.0,0.00253276]
[1735074837037,0.051142,97839.0,97832.0,0.3608]
[1735074837340,0.051143,97838.0,97837.0,0.18268135]
[1735074837531,0.093343,97838.0,97837.0,0.18268135]
[1735074838127,0.36264,97860.0,97838.0,0.001]
[1735074838339,0.051134,97855.0,97852.0,0.3608]
[1735074838541,0.051134,97855.0,97852.0,0.411935]
[1735074838839,0.21335067,97857.0,97852.0,0.3608]
[1735074839143,0.21335067,97857.0,97856.0,0.051133]
[1735074839833,0.24465093,97864.0,97856.0,0.051133]
[1735074840035,0.24465093,97864.0,97863.0,0.41193]
[1735074840237,0.42250556,97878.0,97863.0,0.3608]
[1735074840238,0.18374612,97866.0,97863.0,0.3608]
[1735074840430,0.18374612,97866.0,97864.0,0.051129]
[1735074841341,0.18774612,97866.0,97864.0,0.051129]
[1735074841740,0.004,97866.0,97864.0,0.051129]
[1735074842442,0.0821,97888.0,97863.0,0.60606067]
[1735074842443,0.051118,97886.0,97863.0,0.60606067]
[1735074842737,0.0821,97888.0,97887.0,0.051117]
[1735074843546,0.1,97900.0,97899.0,0.051111]
[1735074843843,0.1,97900.0,97899.0,0.411911]
[1735074844534,0.0401,97918.0,97899.0,0.42158308]
[1735074844733,0.0401,97918.0,97917.0,0.772701]
[1735074846036,0.0401,97918.0,97917.0,0.773701]
[1735074846037,0.0431,97918.0,97917.0,0.773701]
[1735074846945,0.0431,97918.0,97917.0,0.774701]
[1735074847859,0.094201,97918.0,97917.0,0.001]
[1735074848344,0.094201,97918.0,97917.0,0.3618]
[1735074849334,0.0431,97918.0,97917.0,0.3618]
[1735074850847,0.0431,97918.0,97917.0,0.412901]
[1735074851841,0.10070141,97930.0,97917.0,0.412901]
[1735074852044,0.02789087,97995.0,97951.0,0.53]
[1735074852353,0.00056001,98020.0,97994.0,0.3608]
[1735074852648,0.03261636,98091.0,98039.0,0.051038]
[1735074852649,0.39659902,98044.0,98039.0,0.051038]
[1735074852844,0.39659902,98044.0,97997.0,0.051059]
[1735074852845,0.39603901,98044.0,98043.0,0.7216]
[1735074853042,0.17048926,98044.0,98043.0,0.7216]
[1735074853253,0.17048926,98044.0,98043.0,0.772636]
[1735074853444,0.17048926,98044.0,98043.0,0.7818808]
[1735074853749,1.5,98086.0,98064.0,0.051025]
[1735074854049,1.5,98086.0,98043.0,1.0216]
[1735074854050,0.54608669,98085.0,98080.0,0.7216]
[1735074854749,0.6695461,98081.0,98080.0,0.7216]
[1735074854953,0.6695461,98081.0,98080.0,0.21391331]
[1735074855656,0.48581427,98081.0,98079.0,0.24261825]
[1735074855950,0.18879612,98090.0,98079.0,0.3657408]
[1735074856145,0.48581427,98080.0,98079.0,0.3657408]
[1735074856341,0.48581427,98080.0,98075.0,0.3657408]
[1735074856541,0.30211876,98076.0,98075.0,0.3657408]
[1735074856953,1.71638709,98076.0,98064.0,0.001]
[1735074857244,1.71638709,98076.0,98073.0,0.05102]
[1735074857245,1.5,98076.0,98073.0,0.05102]
[1735074857445,0.004,98081.0,98080.0,0.001]
[1735074857655,0.22038709,98081.0,98080.0,0.001]
[1735074857859,0.3608,98081.0,98080.0,0.001]
[1735074858055,0.42906936,98081.0,98080.0,0.001]
[1735074858248,0.42906936,98081.0,98029.0,0.48708384]
[1735074858249,0.06526936,98065.0,98029.0,0.48708384]
[1735074858441,0.41704319,98081.0,98029.0,0.48772384]
[1735074858442,0.06526936,98043.0,98029.0,0.48772384]
[1735074858644,0.06526936,98043.0,98036.0,0.60885481]
[1735074858845,0.06522936,98043.0,98042.0,0.78699836]
[1735074859058,0.06522936,98043.0,98042.0,0.3608]
[1735074859254,0.06522936,98043.0,98042.0,0.82721313]
[1735074859849,0.06522936,98043.0,98042.0,0.47041313]
[1735074860048,0.06522936,98043.0,98042.0,0.004]
[1735074860456,0.06522936,98043.0,98042.0,0.006]
[1735074860952,0.3608,98059.0,98042.0,0.3668]
[1735074861152,0.06522936,98048.0,98042.0,0.3668]
[1735074861864,0.002,98043.0,98042.0,0.3628]
[1735074862359,0.051027,98060.0,98042.0,0.3628]
[1735074862545,0.003,98048.0,98042.0,0.3628]
[1735074862749,0.003,98048.0,98042.0,0.82928096]
[1735074862957,0.051027,98060.0,98042.0,0.82928096]
[1735074863158,0.003,98043.0,98042.0,0.82928096]
[1735074863658,0.06522936,98043.0,98042.0,0.82728096]
[1735074863861,0.06522936,98043.0,98042.0,0.3608]
[1735074864450,0.06522936,98043.0,98042.0,0.3628]
[1735074865254,0.06722936,98043.0,98042.0,0.3608]
[1735074865963,0.06822936,98043.0,98042.0,0.3618]
[1735074866859,0.06922936,98043.0,98042.0,0.3618]
[1735074867456,0.06822936,98043.0,98042.0,0.3618]
[1735074867761,0.06922936,98043.0,98042.0,0.3618]